{"text_format":"1","workbook":"xlsx","n_sheets":7,"sheets":["一覧","選択肢_H","ピボット","ピボット_H","グラフ","選択肢設定","1日あたり件数"],"not_rendered":{"charts":11,"images":0,"macros":1,"external_links":0,"defined_names":28,"comments":0,"pivot_tables":12},"unopened":[],"bounds":{"document_bytes":16777216,"sheet_cells":100000,"rows_first":2000,"rows_last":500,"rows_between":2000,"halvings":0,"cell_chars":16384,"cell_head_chars":4096},"cells_cut":0,"cells_raw":0,"read":"whole","date_system":"1900"}

{"sheet":"一覧","index":0,"n_rows":64,"n_cols":25,"rows_kept":64,"cut":false,"hidden":false,"merged":[]}
["発生年","発生月","発生日","発生年月日","曜日","学年","組","児童生徒","指導担当者","場所","場所の詳細","時間帯","時間帯の詳細","指導対象の行動","行動の詳細","指導内容","指導内容の詳細","共有・報告先","報告先の詳細","家庭連絡","連絡方法","連絡方法の詳細","連絡相手","連絡相手の詳細","その他詳細"]
["2023年","8月","26日",{"$f":"IF(COUNTBLANK(一覧[[#This Row],[発生年]:[発生日]])=0,DATEVALUE(_xlfn.CONCAT(一覧[[#This Row],[発生年]],一覧[[#This Row],[発生月]],一覧[[#This Row],[発生日]])),\"\")","v":"2023-08-26"},{"$f":"TEXT(WEEKDAY(一覧[[#This Row],[発生年月日]]),\"aaaa\")","v":"土曜日"},"1年","3組","テスト　生徒1-7","テスト　教師7","教室",null,"給食",null,"他者私物隠蔽破損等",null,"その他※要入力",null,"担任",null,"連絡あり"]
["2023年","6月","14日",{"$f":"IF(COUNTBLANK(一覧[[#This Row],[発生年]:[発生日]])=0,DATEVALUE(_xlfn.CONCAT(一覧[[#This Row],[発生年]],一覧[[#This Row],[発生月]],一覧[[#This Row],[発生日]])),\"\")","v":"2023-06-14"},{"$f":"TEXT(WEEKDAY(一覧[[#This Row],[発生年月日]]),\"aaaa\")","v":"水曜日"},"1年","3組","テスト　生徒3-14","テスト　教師16","その他※要入力",null,"昼休み",null,"器物損壊",null,"その場で注意・やり直し",null,"生徒指導主事",null,"連絡あり","家庭訪問",null,"母"]
["2023年","9月","13日",{"$f":"IF(COUNTBLANK(一覧[[#This Row],[発生年]:[発生日]])=0,DATEVALUE(_xlfn.CONCAT(一覧[[#This Row],[発生年]],一覧[[#This Row],[発生月]],一覧[[#This Row],[発生日]])),\"\")","v":"2023-09-13"},{"$f":"TEXT(WEEKDAY(一覧[[#This Row],[発生年月日]]),\"aaaa\")","v":"水曜日"},"3年","3組","テスト　生徒2-1","テスト　教師11","教室",null,"始業前",null,"暴力(対生徒)",null,"その他※要入力",null,"学年",null,"連絡なし"]
["2023年","9月","13日",{"$f":"IF(COUNTBLANK(一覧[[#This Row],[発生年]:[発生日]])=0,DATEVALUE(_xlfn.CONCAT(一覧[[#This Row],[発生年]],一覧[[#This Row],[発生月]],一覧[[#This Row],[発生日]])),\"\")","v":"2023-09-13"},{"$f":"TEXT(WEEKDAY(一覧[[#This Row],[発生年月日]]),\"aaaa\")","v":"水曜日"},"3年","3組","テスト　生徒3-14","テスト　教師11","運動場",null,"始業前",null,"暴力(対生徒)",null,"その他※要入力",null,"学年",null,"連絡なし"]
["2023年","11月","18日",{"$f":"IF(COUNTBLANK(一覧[[#This Row],[発生年]:[発生日]])=0,DATEVALUE(_xlfn.CONCAT(一覧[[#This Row],[発生年]],一覧[[#This Row],[発生月]],一覧[[#This Row],[発生日]])),\"\")","v":"2023-11-18"},{"$f":"TEXT(WEEKDAY(一覧[[#This Row],[発生年月日]]),\"aaaa\")","v":"土曜日"},"2年","3組","テスト　生徒1-4","テスト　教師7","教室",null,"休み時間（１限後）",null,"暴力(対教師)",null,"その他※要入力",null,"その他※要入力",null,"連絡あり","その他※要入力",null,"母"]
["2023年","8月","1日",{"$f":"IF(COUNTBLANK(一覧[[#This Row],[発生年]:[発生日]])=0,DATEVALUE(_xlfn.CONCAT(一覧[[#This Row],[発生年]],一覧[[#This Row],[発生月]],一覧[[#This Row],[発生日]])),\"\")","v":"2023-08-01"},{"$f":"TEXT(WEEKDAY(一覧[[#This Row],[発生年月日]]),\"aaaa\")","v":"火曜日"},"1年","6組","テスト　生徒2-12","テスト　教師16","運動場",null,"2時間目",null,"暴言",null,"その場で注意・やり直し",null,"担任",null,"連絡あり","家庭訪問",null,"父"]
["2023年","5月","5日",{"$f":"IF(COUNTBLANK(一覧[[#This Row],[発生年]:[発生日]])=0,DATEVALUE(_xlfn.CONCAT(一覧[[#This Row],[発生年]],一覧[[#This Row],[発生月]],一覧[[#This Row],[発生日]])),\"\")","v":"2023-05-05"},{"$f":"TEXT(WEEKDAY(一覧[[#This Row],[発生年月日]]),\"aaaa\")","v":"金曜日"},"3年","1組","テスト　生徒3-8","テスト　教師11","運動場",null,"6時間目",null,"暴力(対教師)",null,"適切な行動の再指導",null,"その他※要入力",null,"連絡あり",null,null,"母"]
["2023年","6月","10日",{"$f":"IF(COUNTBLANK(一覧[[#This Row],[発生年]:[発生日]])=0,DATEVALUE(_xlfn.CONCAT(一覧[[#This Row],[発生年]],一覧[[#This Row],[発生月]],一覧[[#This Row],[発生日]])),\"\")","v":"2023-06-10"},{"$f":"TEXT(WEEKDAY(一覧[[#This Row],[発生年月日]]),\"aaaa\")","v":"土曜日"},"1年","1組","テスト　生徒2-15","テスト　教師2","体育館",null,"3時間目",null,"徘徊／さぼり",null,"自己を振り返る活動",null,"学年",null,"連絡あり","電話連絡",null,"母"]
["2023年","8月","5日",{"$f":"IF(COUNTBLANK(一覧[[#This Row],[発生年]:[発生日]])=0,DATEVALUE(_xlfn.CONCAT(一覧[[#This Row],[発生年]],一覧[[#This Row],[発生月]],一覧[[#This Row],[発生日]])),\"\")","v":"2023-08-05"},{"$f":"TEXT(WEEKDAY(一覧[[#This Row],[発生年月日]]),\"aaaa\")","v":"土曜日"},"2年","2組","テスト　生徒1-4","テスト　教師1","教室",null,"掃除",null,"授業妨害",null,"奉仕活動",null,"生徒指導主事",null,"連絡あり","家庭訪問",null,"母"]
["2023年","6月","5日",{"$f":"IF(COUNTBLANK(一覧[[#This Row],[発生年]:[発生日]])=0,DATEVALUE(_xlfn.CONCAT(一覧[[#This Row],[発生年]],一覧[[#This Row],[発生月]],一覧[[#This Row],[発生日]])),\"\")","v":"2023-06-05"},{"$f":"TEXT(WEEKDAY(一覧[[#This Row],[発生年月日]]),\"aaaa\")","v":"月曜日"},"2年","5組","テスト　生徒3-4","テスト　教師13","トイレ",null,"6時間目",null,"暴力(対教師)",null,"奉仕活動",null,"学年",null,"連絡なし"]
["2023年","11月","29日",{"$f":"IF(COUNTBLANK(一覧[[#This Row],[発生年]:[発生日]])=0,DATEVALUE(_xlfn.CONCAT(一覧[[#This Row],[発生年]],一覧[[#This Row],[発生月]],一覧[[#This Row],[発生日]])),\"\")","v":"2023-11-29"},{"$f":"TEXT(WEEKDAY(一覧[[#This Row],[発生年月日]]),\"aaaa\")","v":"水曜日"},"2年","2組","テスト　生徒3-9","テスト　教師4","トイレ",null,"始業前",null,"他者私物隠蔽破損等",null,"その他※要入力",null,"生徒指導主事",null,"連絡あり","電話連絡",null,"父"]
["2023年","7月","1日",{"$f":"IF(COUNTBLANK(一覧[[#This Row],[発生年]:[発生日]])=0,DATEVALUE(_xlfn.CONCAT(一覧[[#This Row],[発生年]],一覧[[#This Row],[発生月]],一覧[[#This Row],[発生日]])),\"\")","v":"2023-07-01"},{"$f":"TEXT(WEEKDAY(一覧[[#This Row],[発生年月日]]),\"aaaa\")","v":"土曜日"},"2年","1組","テスト　生徒2-4","テスト　教師5","体育館",null,"始業前",null,"いじめ・嫌がらせ",null,"奉仕活動",null,"その他※要入力",null,"連絡あり","家庭訪問",null,"父"]
["2024年","3月","16日",{"$f":"IF(COUNTBLANK(一覧[[#This Row],[発生年]:[発生日]])=0,DATEVALUE(_xlfn.CONCAT(一覧[[#This Row],[発生年]],一覧[[#This Row],[発生月]],一覧[[#This Row],[発生日]])),\"\")","v":"2024-03-16"},{"$f":"TEXT(WEEKDAY(一覧[[#This Row],[発生年月日]]),\"aaaa\")","v":"土曜日"},"3年","2組","テスト　生徒1-13","テスト　教師6","教室",null,"6時間目",null,"不服従",null,"別室での個別指導",null,"生徒指導部長",null,"連絡あり","その他※要入力",null,"母"]
["2023年","4月","7日",{"$f":"IF(COUNTBLANK(一覧[[#This Row],[発生年]:[発生日]])=0,DATEVALUE(_xlfn.CONCAT(一覧[[#This Row],[発生年]],一覧[[#This Row],[発生月]],一覧[[#This Row],[発生日]])),\"\")","v":"2023-04-07"},{"$f":"TEXT(WEEKDAY(一覧[[#This Row],[発生年月日]]),\"aaaa\")","v":"金曜日"},"1年","1組","テスト　生徒1-12","テスト　教師7","体育館",null,"昼休み",null,"暴力(対教師)",null,"適切な行動の再指導",null,"生徒指導主事",null,"連絡あり","その他※要入力",null,"その他"]
["2023年","6月","9日",{"$f":"IF(COUNTBLANK(一覧[[#This Row],[発生年]:[発生日]])=0,DATEVALUE(_xlfn.CONCAT(一覧[[#This Row],[発生年]],一覧[[#This Row],[発生月]],一覧[[#This Row],[発生日]])),\"\")","v":"2023-06-09"},{"$f":"TEXT(WEEKDAY(一覧[[#This Row],[発生年月日]]),\"aaaa\")","v":"金曜日"},"1年","5組","テスト　生徒2-8","テスト　教師14","体育館",null,"6時間目",null,"暴力(対生徒)",null,"別室での個別指導",null,"生徒指導主事",null,"連絡あり","電話連絡",null,"父"]
["2023年","4月","13日",{"$f":"IF(COUNTBLANK(一覧[[#This Row],[発生年]:[発生日]])=0,DATEVALUE(_xlfn.CONCAT(一覧[[#This Row],[発生年]],一覧[[#This Row],[発生月]],一覧[[#This Row],[発生日]])),\"\")","v":"2023-04-13"},{"$f":"TEXT(WEEKDAY(一覧[[#This Row],[発生年月日]]),\"aaaa\")","v":"木曜日"},"3年","2組","テスト　生徒3-9","テスト　教師12","トイレ",null,"放課後（校内）",null,"他者私物隠蔽破損等",null,"その場で注意・やり直し",null,"教頭",null,"連絡なし"]
["2023年","5月","11日",{"$f":"IF(COUNTBLANK(一覧[[#This Row],[発生年]:[発生日]])=0,DATEVALUE(_xlfn.CONCAT(一覧[[#This Row],[発生年]],一覧[[#This Row],[発生月]],一覧[[#This Row],[発生日]])),\"\")","v":"2023-05-11"},{"$f":"TEXT(WEEKDAY(一覧[[#This Row],[発生年月日]]),\"aaaa\")","v":"木曜日"},"1年","6組","テスト　生徒2-9","テスト　教師5","運動場",null,"1時間目",null,"徘徊／さぼり",null,"その場で注意・やり直し",null,"担任",null,"連絡なし"]
["2023年","7月","22日",{"$f":"IF(COUNTBLANK(一覧[[#This Row],[発生年]:[発生日]])=0,DATEVALUE(_xlfn.CONCAT(一覧[[#This Row],[発生年]],一覧[[#This Row],[発生月]],一覧[[#This Row],[発生日]])),\"\")","v":"2023-07-22"},{"$f":"TEXT(WEEKDAY(一覧[[#This Row],[発生年月日]]),\"aaaa\")","v":"土曜日"},"3年","4組","テスト　生徒1-10","テスト　教師3","体育館",null,"1時間目",null,"不服従",null,"奉仕活動",null,"教頭",null,"連絡あり",null,null,"父"]
["2023年","10月","6日",{"$f":"IF(COUNTBLANK(一覧[[#This Row],[発生年]:[発生日]])=0,DATEVALUE(_xlfn.CONCAT(一覧[[#This Row],[発生年]],一覧[[#This Row],[発生月]],一覧[[#This Row],[発生日]])),\"\")","v":"2023-10-06"},{"$f":"TEXT(WEEKDAY(一覧[[#This Row],[発生年月日]]),\"aaaa\")","v":"金曜日"},"2年","3組","テスト　生徒3-1","テスト　教師11","その他※要入力",null,"給食",null,"暴力(対生徒)",null,"別室での個別指導",null,"校長",null,"連絡なし"]
["2024年","3月","4日",{"$f":"IF(COUNTBLANK(一覧[[#This Row],[発生年]:[発生日]])=0,DATEVALUE(_xlfn.CONCAT(一覧[[#This Row],[発生年]],一覧[[#This Row],[発生月]],一覧[[#This Row],[発生日]])),\"\")","v":"2024-03-04"},{"$f":"TEXT(WEEKDAY(一覧[[#This Row],[発生年月日]]),\"aaaa\")","v":"月曜日"},"2年","4組","テスト　生徒1-11","テスト　教師20","その他※要入力",null,"3時間目",null,"いじめ・嫌がらせ",null,"奉仕活動",null,"校長",null,"連絡なし"]
["2023年","10月","9日",{"$f":"IF(COUNTBLANK(一覧[[#This Row],[発生年]:[発生日]])=0,DATEVALUE(_xlfn.CONCAT(一覧[[#This Row],[発生年]],一覧[[#This Row],[発生月]],一覧[[#This Row],[発生日]])),\"\")","v":"2023-10-09"},{"$f":"TEXT(WEEKDAY(一覧[[#This Row],[発生年月日]]),\"aaaa\")","v":"月曜日"},"2年","3組","テスト　生徒2-2","テスト　教師5","体育館",null,"始業前",null,"暴力(対教師)",null,"自己を振り返る活動",null,"校長",null,"連絡あり","その他※要入力",null,"その他"]
["2023年","7月","22日",{"$f":"IF(COUNTBLANK(一覧[[#This Row],[発生年]:[発生日]])=0,DATEVALUE(_xlfn.CONCAT(一覧[[#This Row],[発生年]],一覧[[#This Row],[発生月]],一覧[[#This Row],[発生日]])),\"\")","v":"2023-07-22"},{"$f":"TEXT(WEEKDAY(一覧[[#This Row],[発生年月日]]),\"aaaa\")","v":"土曜日"},"1年","6組","テスト　生徒2-15","テスト　教師13","体育館",null,"3時間目",null,"徘徊／さぼり",null,"自己を振り返る活動",null,"校長",null,"連絡なし"]
["2023年","9月","19日",{"$f":"IF(COUNTBLANK(一覧[[#This Row],[発生年]:[発生日]])=0,DATEVALUE(_xlfn.CONCAT(一覧[[#This Row],[発生年]],一覧[[#This Row],[発生月]],一覧[[#This Row],[発生日]])),\"\")","v":"2023-09-19"},{"$f":"TEXT(WEEKDAY(一覧[[#This Row],[発生年月日]]),\"aaaa\")","v":"火曜日"},"3年","3組","テスト　生徒2-8","テスト　教師1","教室",null,"放課後（校内）",null,"徘徊／さぼり",null,"別室での個別指導",null,"生徒指導主事",null,"連絡あり","家庭訪問",null,"父"]
["2023年","9月","2日",{"$f":"IF(COUNTBLANK(一覧[[#This Row],[発生年]:[発生日]])=0,DATEVALUE(_xlfn.CONCAT(一覧[[#This Row],[発生年]],一覧[[#This Row],[発生月]],一覧[[#This Row],[発生日]])),\"\")","v":"2023-09-02"},{"$f":"TEXT(WEEKDAY(一覧[[#This Row],[発生年月日]]),\"aaaa\")","v":"土曜日"},"1年","1組","テスト　生徒2-11","テスト　教師19","その他※要入力",null,"5時間目",null,"不服従",null,"その場で注意・やり直し",null,"教頭",null,"連絡あり","その他※要入力",null,"母"]
["2023年","9月","2日",{"$f":"IF(COUNTBLANK(一覧[[#This Row],[発生年]:[発生日]])=0,DATEVALUE(_xlfn.CONCAT(一覧[[#This Row],[発生年]],一覧[[#This Row],[発生月]],一覧[[#This Row],[発生日]])),\"\")","v":"2023-09-02"},{"$f":"TEXT(WEEKDAY(一覧[[#This Row],[発生年月日]]),\"aaaa\")","v":"土曜日"},"1年","1組","テスト　生徒2-11","テスト　教師19","その他※要入力",null,"5時間目",null,"不服従",null,"その場で注意・やり直し",null,"教頭",null,"連絡あり","その他※要入力",null,"母"]
["2023年","7月","13日",{"$f":"IF(COUNTBLANK(一覧[[#This Row],[発生年]:[発生日]])=0,DATEVALUE(_xlfn.CONCAT(一覧[[#This Row],[発生年]],一覧[[#This Row],[発生月]],一覧[[#This Row],[発生日]])),\"\")","v":"2023-07-13"},{"$f":"TEXT(WEEKDAY(一覧[[#This Row],[発生年月日]]),\"aaaa\")","v":"木曜日"},"3年","5組","テスト　生徒3-12","テスト　教師1","トイレ",null,"始業前",null,"暴言",null,"奉仕活動",null,"教頭",null,"連絡なし"]
["2023年","12月","20日",{"$f":"IF(COUNTBLANK(一覧[[#This Row],[発生年]:[発生日]])=0,DATEVALUE(_xlfn.CONCAT(一覧[[#This Row],[発生年]],一覧[[#This Row],[発生月]],一覧[[#This Row],[発生日]])),\"\")","v":"2023-12-20"},{"$f":"TEXT(WEEKDAY(一覧[[#This Row],[発生年月日]]),\"aaaa\")","v":"水曜日"},"3年","1組","テスト　生徒1-7","テスト　教師18","トイレ",null,"1時間目",null,"徘徊／さぼり",null,"奉仕活動",null,"その他※要入力",null,"連絡あり","その他※要入力",null,"父"]
["2023年","12月","8日",{"$f":"IF(COUNTBLANK(一覧[[#This Row],[発生年]:[発生日]])=0,DATEVALUE(_xlfn.CONCAT(一覧[[#This Row],[発生年]],一覧[[#This Row],[発生月]],一覧[[#This Row],[発生日]])),\"\")","v":"2023-12-08"},{"$f":"TEXT(WEEKDAY(一覧[[#This Row],[発生年月日]]),\"aaaa\")","v":"金曜日"},"1年","2組","テスト　生徒1-15","テスト　教師3","その他※要入力",null,"昼休み",null,"徘徊／さぼり",null,"その場で注意・やり直し",null,"教頭",null,"連絡あり","その他※要入力",null,"その他"]
["2023年","11月","26日",{"$f":"IF(COUNTBLANK(一覧[[#This Row],[発生年]:[発生日]])=0,DATEVALUE(_xlfn.CONCAT(一覧[[#This Row],[発生年]],一覧[[#This Row],[発生月]],一覧[[#This Row],[発生日]])),\"\")","v":"2023-11-26"},{"$f":"TEXT(WEEKDAY(一覧[[#This Row],[発生年月日]]),\"aaaa\")","v":"日曜日"},"1年","1組","テスト　生徒3-2","テスト　教師13","その他※要入力",null,"6時間目",null,"暴力(対生徒)",null,"奉仕活動",null,"校長",null,"連絡あり","その他※要入力",null,"父"]
["2023年","10月","19日",{"$f":"IF(COUNTBLANK(一覧[[#This Row],[発生年]:[発生日]])=0,DATEVALUE(_xlfn.CONCAT(一覧[[#This Row],[発生年]],一覧[[#This Row],[発生月]],一覧[[#This Row],[発生日]])),\"\")","v":"2023-10-19"},{"$f":"TEXT(WEEKDAY(一覧[[#This Row],[発生年月日]]),\"aaaa\")","v":"木曜日"},"2年","1組","テスト　生徒1-10","テスト　教師13","教室",null,"2時間目",null,"徘徊／さぼり",null,"自己を振り返る活動",null,"校長",null,"連絡なし"]
["2023年","9月","11日",{"$f":"IF(COUNTBLANK(一覧[[#This Row],[発生年]:[発生日]])=0,DATEVALUE(_xlfn.CONCAT(一覧[[#This Row],[発生年]],一覧[[#This Row],[発生月]],一覧[[#This Row],[発生日]])),\"\")","v":"2023-09-11"},{"$f":"TEXT(WEEKDAY(一覧[[#This Row],[発生年月日]]),\"aaaa\")","v":"月曜日"},"2年","3組","テスト　生徒3-4","テスト　教師16","教室",null,"5時間目",null,"いじめ・嫌がらせ",null,"その場で注意・やり直し",null,"校長",null,"連絡あり","電話連絡",null,"父"]
["2024年","1月","15日",{"$f":"IF(COUNTBLANK(一覧[[#This Row],[発生年]:[発生日]])=0,DATEVALUE(_xlfn.CONCAT(一覧[[#This Row],[発生年]],一覧[[#This Row],[発生月]],一覧[[#This Row],[発生日]])),\"\")","v":"2024-01-15"},{"$f":"TEXT(WEEKDAY(一覧[[#This Row],[発生年月日]]),\"aaaa\")","v":"月曜日"},"1年","2組","テスト　生徒2-13","テスト　教師10","校外",null,"5時間目",null,"他者私物隠蔽破損等",null,"自己を振り返る活動",null,"学年",null,"連絡あり","電話連絡",null,"母"]
["2024年","1月","4日",{"$f":"IF(COUNTBLANK(一覧[[#This Row],[発生年]:[発生日]])=0,DATEVALUE(_xlfn.CONCAT(一覧[[#This Row],[発生年]],一覧[[#This Row],[発生月]],一覧[[#This Row],[発生日]])),\"\")","v":"2024-01-04"},{"$f":"TEXT(WEEKDAY(一覧[[#This Row],[発生年月日]]),\"aaaa\")","v":"木曜日"},"1年","4組","テスト　生徒2-14","テスト　教師19","その他※要入力",null,"放課後（校内）",null,"器物損壊",null,"適切な行動の再指導",null,"その他※要入力",null,"連絡あり","家庭訪問",null,"母"]
["2023年","7月","3日",{"$f":"IF(COUNTBLANK(一覧[[#This Row],[発生年]:[発生日]])=0,DATEVALUE(_xlfn.CONCAT(一覧[[#This Row],[発生年]],一覧[[#This Row],[発生月]],一覧[[#This Row],[発生日]])),\"\")","v":"2023-07-03"},{"$f":"TEXT(WEEKDAY(一覧[[#This Row],[発生年月日]]),\"aaaa\")","v":"月曜日"},"2年","1組","テスト　生徒2-3","テスト　教師16","校外",null,"4時間目",null,"暴言",null,"その他※要入力",null,"校長",null,"連絡なし"]
["2023年","10月","17日",{"$f":"IF(COUNTBLANK(一覧[[#This Row],[発生年]:[発生日]])=0,DATEVALUE(_xlfn.CONCAT(一覧[[#This Row],[発生年]],一覧[[#This Row],[発生月]],一覧[[#This Row],[発生日]])),\"\")","v":"2023-10-17"},{"$f":"TEXT(WEEKDAY(一覧[[#This Row],[発生年月日]]),\"aaaa\")","v":"火曜日"},"1年","6組","テスト　生徒1-6","テスト　教師16","教室",null,"5時間目",null,"暴言",null,"別室での個別指導",null,"校長",null,"連絡なし"]
["2023年","8月","25日",{"$f":"IF(COUNTBLANK(一覧[[#This Row],[発生年]:[発生日]])=0,DATEVALUE(_xlfn.CONCAT(一覧[[#This Row],[発生年]],一覧[[#This Row],[発生月]],一覧[[#This Row],[発生日]])),\"\")","v":"2023-08-25"},{"$f":"TEXT(WEEKDAY(一覧[[#This Row],[発生年月日]]),\"aaaa\")","v":"金曜日"},"2年","6組","テスト　生徒3-13","テスト　教師17","校外",null,"放課後（校外）",null,"授業妨害",null,"その場で注意・やり直し",null,"学年",null,"連絡なし"]
["2023年","8月","13日",{"$f":"IF(COUNTBLANK(一覧[[#This Row],[発生年]:[発生日]])=0,DATEVALUE(_xlfn.CONCAT(一覧[[#This Row],[発生年]],一覧[[#This Row],[発生月]],一覧[[#This Row],[発生日]])),\"\")","v":"2023-08-13"},{"$f":"TEXT(WEEKDAY(一覧[[#This Row],[発生年月日]]),\"aaaa\")","v":"日曜日"},"2年","1組","テスト　生徒1-7","テスト　教師17","体育館",null,"2時間目",null,"いじめ・嫌がらせ",null,"別室での個別指導",null,"担任",null,"連絡あり","その他※要入力",null,"母"]
["2023年","6月","25日",{"$f":"IF(COUNTBLANK(一覧[[#This Row],[発生年]:[発生日]])=0,DATEVALUE(_xlfn.CONCAT(一覧[[#This Row],[発生年]],一覧[[#This Row],[発生月]],一覧[[#This Row],[発生日]])),\"\")","v":"2023-06-25"},{"$f":"TEXT(WEEKDAY(一覧[[#This Row],[発生年月日]]),\"aaaa\")","v":"日曜日"},"3年","1組","テスト　生徒3-5","テスト　教師7","教室",null,"始業前",null,"他者私物隠蔽破損等",null,"適切な行動の再指導",null,"担任",null,"連絡あり","その他※要入力",null,"母"]
["2023年","9月","3日",{"$f":"IF(COUNTBLANK(一覧[[#This Row],[発生年]:[発生日]])=0,DATEVALUE(_xlfn.CONCAT(一覧[[#This Row],[発生年]],一覧[[#This Row],[発生月]],一覧[[#This Row],[発生日]])),\"\")","v":"2023-09-03"},{"$f":"TEXT(WEEKDAY(一覧[[#This Row],[発生年月日]]),\"aaaa\")","v":"日曜日"},"2年","3組","テスト　生徒3-7","テスト　教師8","校外",null,"6時間目",null,"授業妨害",null,"奉仕活動",null,"生徒指導部長",null,"連絡あり","その他※要入力",null,"母"]
["2023年","6月","15日",{"$f":"IF(COUNTBLANK(一覧[[#This Row],[発生年]:[発生日]])=0,DATEVALUE(_xlfn.CONCAT(一覧[[#This Row],[発生年]],一覧[[#This Row],[発生月]],一覧[[#This Row],[発生日]])),\"\")","v":"2023-06-15"},{"$f":"TEXT(WEEKDAY(一覧[[#This Row],[発生年月日]]),\"aaaa\")","v":"木曜日"},"2年","2組","テスト　生徒1-12","テスト　教師19","教室",null,"昼休み",null,"授業妨害",null,"別室での個別指導",null,"その他※要入力",null,"連絡なし"]
["2023年","8月","8日",{"$f":"IF(COUNTBLANK(一覧[[#This Row],[発生年]:[発生日]])=0,DATEVALUE(_xlfn.CONCAT(一覧[[#This Row],[発生年]],一覧[[#This Row],[発生月]],一覧[[#This Row],[発生日]])),\"\")","v":"2023-08-08"},{"$f":"TEXT(WEEKDAY(一覧[[#This Row],[発生年月日]]),\"aaaa\")","v":"火曜日"},"2年","3組","テスト　生徒1-1","テスト　教師13","運動場",null,"3時間目",null,"けんか",null,"奉仕活動",null,"生徒指導主事",null,"連絡あり"]
["2023年","6月","9日",{"$f":"IF(COUNTBLANK(一覧[[#This Row],[発生年]:[発生日]])=0,DATEVALUE(_xlfn.CONCAT(一覧[[#This Row],[発生年]],一覧[[#This Row],[発生月]],一覧[[#This Row],[発生日]])),\"\")","v":"2023-06-09"},{"$f":"TEXT(WEEKDAY(一覧[[#This Row],[発生年月日]]),\"aaaa\")","v":"金曜日"},"1年","2組","テスト　生徒2-11","テスト　教師19","その他※要入力",null,"6時間目",null,"暴言",null,"奉仕活動",null,"その他※要入力",null,"連絡なし"]
["2023年","6月","26日",{"$f":"IF(COUNTBLANK(一覧[[#This Row],[発生年]:[発生日]])=0,DATEVALUE(_xlfn.CONCAT(一覧[[#This Row],[発生年]],一覧[[#This Row],[発生月]],一覧[[#This Row],[発生日]])),\"\")","v":"2023-06-26"},{"$f":"TEXT(WEEKDAY(一覧[[#This Row],[発生年月日]]),\"aaaa\")","v":"月曜日"},"1年","4組","テスト　生徒2-3","テスト　教師17","体育館",null,"1時間目",null,"いじめ・嫌がらせ",null,"その場で注意・やり直し",null,"生徒指導部長",null,"連絡なし"]
["2023年","7月","19日",{"$f":"IF(COUNTBLANK(一覧[[#This Row],[発生年]:[発生日]])=0,DATEVALUE(_xlfn.CONCAT(一覧[[#This Row],[発生年]],一覧[[#This Row],[発生月]],一覧[[#This Row],[発生日]])),\"\")","v":"2023-07-19"},{"$f":"TEXT(WEEKDAY(一覧[[#This Row],[発生年月日]]),\"aaaa\")","v":"水曜日"},"3年","5組","テスト　生徒1-8","テスト　教師10","体育館",null,"給食",null,"けんか",null,"奉仕活動",null,"教頭",null,"連絡あり","電話連絡",null,"母"]
["2023年","12月","25日",{"$f":"IF(COUNTBLANK(一覧[[#This Row],[発生年]:[発生日]])=0,DATEVALUE(_xlfn.CONCAT(一覧[[#This Row],[発生年]],一覧[[#This Row],[発生月]],一覧[[#This Row],[発生日]])),\"\")","v":"2023-12-25"},{"$f":"TEXT(WEEKDAY(一覧[[#This Row],[発生年月日]]),\"aaaa\")","v":"月曜日"},"1年","2組","テスト　生徒1-4","テスト　教師3","トイレ",null,"5時間目",null,"徘徊／さぼり",null,"自己を振り返る活動",null,"学年",null,"連絡なし"]
["2023年","8月","19日",{"$f":"IF(COUNTBLANK(一覧[[#This Row],[発生年]:[発生日]])=0,DATEVALUE(_xlfn.CONCAT(一覧[[#This Row],[発生年]],一覧[[#This Row],[発生月]],一覧[[#This Row],[発生日]])),\"\")","v":"2023-08-19"},{"$f":"TEXT(WEEKDAY(一覧[[#This Row],[発生年月日]]),\"aaaa\")","v":"土曜日"},"2年","6組","テスト　生徒2-7","テスト　教師17","教室",null,"4時間目",null,"暴力(対教師)",null,"別室での個別指導",null,"学年",null,"連絡あり","電話連絡",null,"母"]
["2023年","7月","16日",{"$f":"IF(COUNTBLANK(一覧[[#This Row],[発生年]:[発生日]])=0,DATEVALUE(_xlfn.CONCAT(一覧[[#This Row],[発生年]],一覧[[#This Row],[発生月]],一覧[[#This Row],[発生日]])),\"\")","v":"2023-07-16"},{"$f":"TEXT(WEEKDAY(一覧[[#This Row],[発生年月日]]),\"aaaa\")","v":"日曜日"},"3年","2組","テスト　生徒1-10","テスト　教師18","トイレ",null,"6時間目",null,"授業妨害",null,"適切な行動の再指導",null,"生徒指導部長",null,"連絡なし"]
["2023年","12月","1日",{"$f":"IF(COUNTBLANK(一覧[[#This Row],[発生年]:[発生日]])=0,DATEVALUE(_xlfn.CONCAT(一覧[[#This Row],[発生年]],一覧[[#This Row],[発生月]],一覧[[#This Row],[発生日]])),\"\")","v":"2023-12-01"},{"$f":"TEXT(WEEKDAY(一覧[[#This Row],[発生年月日]]),\"aaaa\")","v":"金曜日"},"2年","2組","テスト　生徒2-6","テスト　教師11","運動場",null,"1時間目",null,"徘徊／さぼり",null,"その場で注意・やり直し",null,"生徒指導主事",null,"連絡なし"]
["2024年","3月","11日",{"$f":"IF(COUNTBLANK(一覧[[#This Row],[発生年]:[発生日]])=0,DATEVALUE(_xlfn.CONCAT(一覧[[#This Row],[発生年]],一覧[[#This Row],[発生月]],一覧[[#This Row],[発生日]])),\"\")","v":"2024-03-11"},{"$f":"TEXT(WEEKDAY(一覧[[#This Row],[発生年月日]]),\"aaaa\")","v":"月曜日"},"2年","4組","テスト　生徒2-1","テスト　教師13","トイレ",null,"その他※要入力",null,"暴力(対教師)",null,"奉仕活動",null,"校長",null,"連絡あり","その他※要入力",null,"父"]
["2024年","2月","2日",{"$f":"IF(COUNTBLANK(一覧[[#This Row],[発生年]:[発生日]])=0,DATEVALUE(_xlfn.CONCAT(一覧[[#This Row],[発生年]],一覧[[#This Row],[発生月]],一覧[[#This Row],[発生日]])),\"\")","v":"2024-02-02"},{"$f":"TEXT(WEEKDAY(一覧[[#This Row],[発生年月日]]),\"aaaa\")","v":"金曜日"},"3年","7組","テスト　生徒3-14","テスト　教師18","運動場",null,"3時間目",null,"暴力(対教師)",null,"その場で注意・やり直し",null,"担任",null,"連絡なし"]
["2023年","5月","6日",{"$f":"IF(COUNTBLANK(一覧[[#This Row],[発生年]:[発生日]])=0,DATEVALUE(_xlfn.CONCAT(一覧[[#This Row],[発生年]],一覧[[#This Row],[発生月]],一覧[[#This Row],[発生日]])),\"\")","v":"2023-05-06"},{"$f":"TEXT(WEEKDAY(一覧[[#This Row],[発生年月日]]),\"aaaa\")","v":"土曜日"},"3年","6組","テスト　生徒3-4","テスト　教師13","体育館",null,"休み時間（５限後）",null,"いじめ・嫌がらせ",null,"自己を振り返る活動",null,"生徒指導主事",null,"連絡なし"]
["2023年","5月","6日",{"$f":"IF(COUNTBLANK(一覧[[#This Row],[発生年]:[発生日]])=0,DATEVALUE(_xlfn.CONCAT(一覧[[#This Row],[発生年]],一覧[[#This Row],[発生月]],一覧[[#This Row],[発生日]])),\"\")","v":"2023-05-06"},{"$f":"TEXT(WEEKDAY(一覧[[#This Row],[発生年月日]]),\"aaaa\")","v":"土曜日"},"3年","6組","テスト　生徒3-4","テスト　教師13","体育館",null,"休み時間（５限後）",null,"いじめ・嫌がらせ",null,"自己を振り返る活動",null,"生徒指導主事",null,"連絡なし"]
["2023年","5月","6日",{"$f":"IF(COUNTBLANK(一覧[[#This Row],[発生年]:[発生日]])=0,DATEVALUE(_xlfn.CONCAT(一覧[[#This Row],[発生年]],一覧[[#This Row],[発生月]],一覧[[#This Row],[発生日]])),\"\")","v":"2023-05-06"},{"$f":"TEXT(WEEKDAY(一覧[[#This Row],[発生年月日]]),\"aaaa\")","v":"土曜日"},"3年","6組","テスト　生徒3-4","テスト　教師13","体育館",null,"休み時間（５限後）",null,"いじめ・嫌がらせ",null,"自己を振り返る活動",null,"生徒指導主事",null,"連絡なし"]
["2023年","5月","6日",{"$f":"IF(COUNTBLANK(一覧[[#This Row],[発生年]:[発生日]])=0,DATEVALUE(_xlfn.CONCAT(一覧[[#This Row],[発生年]],一覧[[#This Row],[発生月]],一覧[[#This Row],[発生日]])),\"\")","v":"2023-05-06"},{"$f":"TEXT(WEEKDAY(一覧[[#This Row],[発生年月日]]),\"aaaa\")","v":"土曜日"},"3年","6組","テスト　生徒3-4","テスト　教師13","体育館",null,"休み時間（５限後）",null,"いじめ・嫌がらせ",null,"自己を振り返る活動",null,"生徒指導主事",null,"連絡なし"]
["2023年","5月","6日",{"$f":"IF(COUNTBLANK(一覧[[#This Row],[発生年]:[発生日]])=0,DATEVALUE(_xlfn.CONCAT(一覧[[#This Row],[発生年]],一覧[[#This Row],[発生月]],一覧[[#This Row],[発生日]])),\"\")","v":"2023-05-06"},{"$f":"TEXT(WEEKDAY(一覧[[#This Row],[発生年月日]]),\"aaaa\")","v":"土曜日"},"3年","6組","テスト　生徒3-4","テスト　教師13","体育館",null,"休み時間（５限後）",null,"いじめ・嫌がらせ",null,"自己を振り返る活動",null,"生徒指導主事",null,"連絡なし"]
["2023年","5月","6日",{"$f":"IF(COUNTBLANK(一覧[[#This Row],[発生年]:[発生日]])=0,DATEVALUE(_xlfn.CONCAT(一覧[[#This Row],[発生年]],一覧[[#This Row],[発生月]],一覧[[#This Row],[発生日]])),\"\")","v":"2023-05-06"},{"$f":"TEXT(WEEKDAY(一覧[[#This Row],[発生年月日]]),\"aaaa\")","v":"土曜日"},"3年","6組","テスト　生徒3-4","テスト　教師13","体育館",null,"休み時間（５限後）",null,"いじめ・嫌がらせ",null,"自己を振り返る活動",null,"生徒指導主事",null,"連絡なし"]
["2023年","5月","6日",{"$f":"IF(COUNTBLANK(一覧[[#This Row],[発生年]:[発生日]])=0,DATEVALUE(_xlfn.CONCAT(一覧[[#This Row],[発生年]],一覧[[#This Row],[発生月]],一覧[[#This Row],[発生日]])),\"\")","v":"2023-05-06"},{"$f":"TEXT(WEEKDAY(一覧[[#This Row],[発生年月日]]),\"aaaa\")","v":"土曜日"},"3年","6組","テスト　生徒3-4","テスト　教師13","体育館",null,"休み時間（５限後）",null,"いじめ・嫌がらせ",null,"自己を振り返る活動",null,"生徒指導主事",null,"連絡なし"]
["2023年","5月","6日",{"$f":"IF(COUNTBLANK(一覧[[#This Row],[発生年]:[発生日]])=0,DATEVALUE(_xlfn.CONCAT(一覧[[#This Row],[発生年]],一覧[[#This Row],[発生月]],一覧[[#This Row],[発生日]])),\"\")","v":"2023-05-06"},{"$f":"TEXT(WEEKDAY(一覧[[#This Row],[発生年月日]]),\"aaaa\")","v":"土曜日"},"3年","6組","テスト　生徒3-4","テスト　教師13","体育館",null,"休み時間（５限後）",null,"いじめ・嫌がらせ",null,"自己を振り返る活動",null,"生徒指導主事",null,"連絡なし"]
["2023年","5月","6日",{"$f":"IF(COUNTBLANK(一覧[[#This Row],[発生年]:[発生日]])=0,DATEVALUE(_xlfn.CONCAT(一覧[[#This Row],[発生年]],一覧[[#This Row],[発生月]],一覧[[#This Row],[発生日]])),\"\")","v":"2023-05-06"},{"$f":"TEXT(WEEKDAY(一覧[[#This Row],[発生年月日]]),\"aaaa\")","v":"土曜日"},"3年","6組","テスト　生徒3-4","テスト　教師13","体育館",null,"休み時間（５限後）",null,"いじめ・嫌がらせ",null,"自己を振り返る活動",null,"生徒指導主事",null,"連絡なし"]
["2023年","5月","6日",{"$f":"IF(COUNTBLANK(一覧[[#This Row],[発生年]:[発生日]])=0,DATEVALUE(_xlfn.CONCAT(一覧[[#This Row],[発生年]],一覧[[#This Row],[発生月]],一覧[[#This Row],[発生日]])),\"\")","v":"2023-05-06"},{"$f":"TEXT(WEEKDAY(一覧[[#This Row],[発生年月日]]),\"aaaa\")","v":"土曜日"},"3年","6組","テスト　生徒3-4","テスト　教師13","体育館",null,"休み時間（５限後）",null,"いじめ・嫌がらせ",null,"自己を振り返る活動",null,"生徒指導主事",null,"連絡なし"]
["2023年","5月","6日",{"$f":"IF(COUNTBLANK(一覧[[#This Row],[発生年]:[発生日]])=0,DATEVALUE(_xlfn.CONCAT(一覧[[#This Row],[発生年]],一覧[[#This Row],[発生月]],一覧[[#This Row],[発生日]])),\"\")","v":"2023-05-06"},{"$f":"TEXT(WEEKDAY(一覧[[#This Row],[発生年月日]]),\"aaaa\")","v":"土曜日"},"3年","6組","テスト　生徒3-4","テスト　教師13","体育館",null,"休み時間（５限後）",null,"いじめ・嫌がらせ",null,"自己を振り返る活動",null,"生徒指導主事",null,"連絡なし"]
["2023年","5月","6日",{"$f":"IF(COUNTBLANK(一覧[[#This Row],[発生年]:[発生日]])=0,DATEVALUE(_xlfn.CONCAT(一覧[[#This Row],[発生年]],一覧[[#This Row],[発生月]],一覧[[#This Row],[発生日]])),\"\")","v":"2023-05-06"},{"$f":"TEXT(WEEKDAY(一覧[[#This Row],[発生年月日]]),\"aaaa\")","v":"土曜日"},"3年","6組","テスト　生徒3-4","テスト　教師13","体育館",null,"休み時間（５限後）",null,"いじめ・嫌がらせ",null,"自己を振り返る活動",null,"生徒指導主事",null,"連絡なし"]
["2023年","5月","6日",{"$f":"IF(COUNTBLANK(一覧[[#This Row],[発生年]:[発生日]])=0,DATEVALUE(_xlfn.CONCAT(一覧[[#This Row],[発生年]],一覧[[#This Row],[発生月]],一覧[[#This Row],[発生日]])),\"\")","v":"2023-05-06"},{"$f":"TEXT(WEEKDAY(一覧[[#This Row],[発生年月日]]),\"aaaa\")","v":"土曜日"},"3年","7組","テスト　生徒3-14","テスト　教師13","体育館",null,"休み時間（５限後）",null,"いじめ・嫌がらせ",null,"自己を振り返る活動",null,"生徒指導主事",null,"連絡なし"]

{"sheet":"選択肢_H","index":1,"n_rows":34,"n_cols":15,"rows_kept":34,"cut":false,"hidden":true,"merged":[]}
["児童生徒","指導担当者","西暦","月","日","学年","組","場所","時間帯","指導対象の行動","指導内容","共有・報告","家庭連絡","連絡方法","連絡相手"]
[{"$f":"IFERROR(_xlfn.UNIQUE(_xlfn._xlws.FILTER(一覧[児童生徒],(一覧[児童生徒]<>\"\")*(一覧[児童生徒]<>0))),\"\")","v":"テスト　生徒1-7"},{"$f":"IFERROR(_xlfn.UNIQUE(_xlfn._xlws.FILTER(一覧[指導担当者],(一覧[指導担当者]<>\"\")*(一覧[指導担当者]<>0))),\"\")","v":"テスト　教師7"},{"$f":"YEAR(NOW())-1&\"年\"","v":"2023年"},"1月","1日",{"$f":"_xlfn._xlws.FILTER(テーブル_選択肢[学年],テーブル_選択肢[学年]<>0)","v":"1年"},{"$f":"_xlfn._xlws.FILTER(テーブル_選択肢[組],テーブル_選択肢[組]<>0)","v":"1組"},{"$f":"_xlfn._xlws.FILTER(テーブル_選択肢[場所],テーブル_選択肢[場所]<>0)","v":"教室"},{"$f":"_xlfn._xlws.FILTER(テーブル_選択肢[時間帯],テーブル_選択肢[時間帯]<>0)","v":"始業前"},{"$f":"_xlfn._xlws.FILTER(テーブル_選択肢[指導対象の行動],テーブル_選択肢[指導対象の行動]<>0)","v":"暴力(対生徒)"},{"$f":"_xlfn._xlws.FILTER(テーブル_選択肢[指導内容],テーブル_選択肢[指導内容]<>0)","v":"その場で注意・やり直し"},{"$f":"_xlfn._xlws.FILTER(テーブル_選択肢[共有・報告先],テーブル_選択肢[共有・報告先]<>0)","v":"担任"},"連絡なし",{"$f":"_xlfn._xlws.FILTER(テーブル_選択肢[連絡方法],テーブル_選択肢[連絡方法]<>0)","v":"家庭訪問"},{"$f":"_xlfn._xlws.FILTER(テーブル_選択肢[連絡相手],テーブル_選択肢[連絡相手]<>0)","v":"父"}]
["テスト　生徒3-14","テスト　教師16",{"$f":"YEAR(NOW())&\"年\"","v":"2024年"},"2月","2日","2年","2組","ろうか","1時間目","暴力(対教師)","別室での個別指導","学年","連絡あり","電話連絡","母"]
["テスト　生徒2-1","テスト　教師11",null,"3月","3日","3年","3組","トイレ","休み時間（１限後）","けんか","奉仕活動","生徒指導部長",null,"その他※要入力","その他"]
["テスト　生徒1-4","テスト　教師2",null,"4月","4日","4年","4組","運動場","2時間目","暴言","自己を振り返る活動","生徒指導主事"]
["テスト　生徒2-12","テスト　教師1",null,"5月","5日","5年","5組","体育館","休み時間（２限後）","いじめ・嫌がらせ","適切な行動の再指導","教頭"]
["テスト　生徒3-8","テスト　教師13",null,"6月","6日","6年","6組","校外","3時間目","授業妨害","その他※要入力","校長"]
["テスト　生徒2-15","テスト　教師4",null,"7月","7日",null,"7組","その他※要入力","休み時間（３限後）","器物損壊",null,"その他※要入力"]
["テスト　生徒3-4","テスト　教師5",null,"8月","8日",null,"8組",null,"4時間目","他者私物隠蔽破損等"]
["テスト　生徒3-9","テスト　教師6",null,"9月","9日",null,null,null,"給食","不服従"]
["テスト　生徒2-4","テスト　教師14",null,"10月","10日",null,null,null,"昼休み","徘徊／さぼり"]
["テスト　生徒1-13","テスト　教師12",null,"11月","11日",null,null,null,"5時間目","不適切な場所への立入"]
["テスト　生徒1-12","テスト　教師3",null,"12月","12日",null,null,null,"休み時間（５限後）","その他※要入力"]
["テスト　生徒2-8","テスト　教師20",null,null,"13日",null,null,null,"6時間目"]
["テスト　生徒2-9","テスト　教師19",null,null,"14日",null,null,null,"掃除"]
["テスト　生徒1-10","テスト　教師18",null,null,"15日",null,null,null,"放課後（校内）"]
["テスト　生徒3-1","テスト　教師10",null,null,"16日",null,null,null,"放課後（校外）"]
["テスト　生徒1-11","テスト　教師17",null,null,"17日",null,null,null,"その他※要入力"]
["テスト　生徒2-2","テスト　教師8",null,null,"18日"]
["テスト　生徒2-11",null,null,null,"19日"]
["テスト　生徒3-12",null,null,null,"20日"]
["テスト　生徒1-15",null,null,null,"21日"]
["テスト　生徒3-2",null,null,null,"22日"]
["テスト　生徒2-13",null,null,null,"23日"]
["テスト　生徒2-14",null,null,null,"24日"]
["テスト　生徒2-3",null,null,null,"25日"]
["テスト　生徒1-6",null,null,null,"26日"]
["テスト　生徒3-13",null,null,null,"27日"]
["テスト　生徒3-5",null,null,null,"28日"]
["テスト　生徒3-7",null,null,null,"29日"]
["テスト　生徒1-1",null,null,null,"30日"]
["テスト　生徒1-8",null,null,null,"31日"]
["テスト　生徒2-7"]
["テスト　生徒2-6"]

{"sheet":"ピボット","index":2,"n_rows":31,"n_cols":36,"rows_kept":31,"cut":false,"hidden":true,"merged":[]}
["行ラベル","個数 / 月",null,"行ラベル","個数 / 児童生徒",null,"行ラベル","個数 / 場所",null,"行ラベル","個数 / 時間帯",null,"行ラベル","個数 / 指導対象の行動",null,"行ラベル","個数 / 指導内容",null,"行ラベル","個数 / 曜日",null,"行ラベル","合計 / 1日あたり件数",null,"個数 / 児童生徒","列ラベル"]
["2023年",56,null,"テスト　生徒3-4",14,null,"体育館",22,null,"始業前",7,null,"いじめ・嫌がらせ",16,null,"その場で注意・やり直し",11,null,"月曜日",6,null,"4月",0.1,null,"行ラベル","いじめ・嫌がらせ","けんか","器物損壊","授業妨害","他者私物隠蔽破損等","不服従","暴言","暴力(対生徒)","暴力(対教師)","徘徊／さぼり","総計"]
["4月",2,null,"テスト　生徒1-7",3,null,"教室",11,null,"1時間目",5,null,"徘徊／さぼり",9,null,"別室での個別指導",7,null,"火曜日",4,null,"5月",0.61,null,"2023年",16,2,1,5,4,3,5,5,6,9,56]
["5月",14,null,"テスト　生徒1-10",3,null,"その他※要入力",7,null,"休み時間（１限後）",1,null,"暴力(対教師)",6,null,"奉仕活動",11,null,"水曜日",6,null,"6月",0.36,null,"4月",null,null,null,null,1,null,null,null,1,null,2]
["6月",8,null,"テスト　生徒1-4",3,null,"トイレ",7,null,"2時間目",3,null,"暴力(対生徒)",5,null,"自己を振り返る活動",17,null,"木曜日",5,null,"7月",0.33,null,"6月",1,null,1,1,1,null,1,1,1,1,8]
["7月",7,null,"テスト　生徒2-11",3,null,"運動場",6,null,"3時間目",3,null,"暴言",5,null,"適切な行動の再指導",4,null,"金曜日",8,null,"8月",0.3,null,"9月",1,null,null,1,null,2,null,2,null,1,7]
["8月",7,null,"テスト　生徒3-14",2,null,"校外",3,null,"4時間目",2,null,"授業妨害",5,null,"その他※要入力",6,null,"土曜日",22,null,"9月",0.33,null,"11月",null,null,null,null,1,null,null,1,1,null,3]
["9月",7,null,"テスト　生徒2-8",2,null,"総計",56,null,"給食",3,null,"他者私物隠蔽破損等",4,null,"総計",56,null,"日曜日",5,null,"10月",0.18,null,"12月",null,null,null,null,null,null,null,null,null,4,4]
["10月",4,null,"テスト　生徒1-12",2,null,null,null,null,"昼休み",4,null,"不服従",3,null,null,null,null,"総計",56,null,"11月",0.14000000000000001,null,"5月",12,null,null,null,null,null,null,null,1,1,14]
["11月",3,null,"テスト　生徒2-3",2,null,null,null,null,"5時間目",5,null,"けんか",2,null,null,null,null,null,null,null,"12月",0.19,null,"8月",1,1,null,2,1,null,1,null,1,null,7]
["12月",4,null,"テスト　生徒3-9",2,null,null,null,null,"休み時間（５限後）",12,null,"器物損壊",1,null,null,null,null,null,null,null,"1月",0.09,null,"7月",1,1,null,1,null,1,2,null,null,1,7]
["総計",56,null,"テスト　生徒2-15",2,null,null,null,null,"6時間目",7,null,"総計",56,null,null,null,null,null,null,null,"2月",0.05,null,"10月",null,null,null,null,null,null,1,1,1,1,4]
[null,null,null,"テスト　生徒3-13",1,null,null,null,null,"掃除",1,null,null,null,null,null,null,null,null,null,null,"3月",0.14000000000000001,null,"2024年",1,null,1,null,1,1,null,null,2,null,6]
[null,null,null,"テスト　生徒3-12",1,null,null,null,null,"放課後（校内）",2,null,null,null,null,null,null,null,null,null,null,"総計",2.82,null,"1月",null,null,1,null,1,null,null,null,null,null,2]
[null,null,null,"テスト　生徒2-9",1,null,null,null,null,"放課後（校外）",1,null,null,null,null,null,null,null,null,null,null,null,null,null,"3月",1,null,null,null,null,1,null,null,1,null,3]
[null,null,null,"テスト　生徒1-15",1,null,null,null,null,"総計",56,null,null,null,null,null,null,null,null,null,null,null,null,null,"2月",null,null,null,null,null,null,null,null,1,null,1]
[null,null,null,"テスト　生徒3-7",1,null,null,null,null,null,null,null,null,null,null,null,null,null,null,null,null,null,null,null,"総計",17,2,2,5,5,4,5,5,8,9,62]
[null,null,null,"テスト　生徒1-8",1]
[null,null,null,"テスト　生徒2-6",1]
[null,null,null,"テスト　生徒1-1",1]
[null,null,null,"テスト　生徒3-1",1]
[null,null,null,"テスト　生徒2-1",1]
[null,null,null,"テスト　生徒3-2",1]
[null,null,null,"テスト　生徒2-12",1]
[null,null,null,"テスト　生徒1-6",1]
[null,null,null,"テスト　生徒2-2",1]
[null,null,null,"テスト　生徒3-5",1]
[null,null,null,"テスト　生徒2-4",1]
[null,null,null,"テスト　生徒3-8",1]
[null,null,null,"テスト　生徒2-7",1]
[null,null,null,"総計",56]

{"sheet":"ピボット_H","index":3,"n_rows":55,"n_cols":16,"rows_kept":55,"cut":false,"hidden":true,"merged":[]}
["個数 / 児童生徒","列ラベル"]
["行ラベル","その場で注意・やり直し","その他※要入力","自己を振り返る活動","適切な行動の再指導","別室での個別指導","奉仕活動","総計"]
["いじめ・嫌がらせ",2,null,12,null,1,1,16]
["けんか",null,null,null,null,null,2,2]
["器物損壊",1,null,null,null,null,null,1]
["授業妨害",1,null,null,1,1,2,5]
["他者私物隠蔽破損等",1,2,null,1,null,null,4]
["不服従",2,null,null,null,null,1,3]
["暴言",1,1,null,null,1,2,5]
["暴力(対生徒)",null,2,null,null,2,1,5]
["暴力(対教師)",null,1,1,2,1,1,6]
["徘徊／さぼり",3,null,4,null,1,1,9]
["総計",11,6,17,4,7,11,56]
[]
[]
[]
[]
[]
[]
["個数 / 児童生徒","列ラベル"]
["行ラベル","1時間目","2時間目","3時間目","4時間目","5時間目","6時間目","給食","始業前","掃除","休み時間（１限後）","昼休み","休み時間（５限後）","放課後（校内）","放課後（校外）","総計"]
["その他※要入力",null,null,null,null,2,2,1,null,null,null,2,null,null,null,7]
["トイレ",1,null,null,null,1,2,null,2,null,null,null,null,1,null,7]
["教室",null,1,null,1,2,null,1,2,1,1,1,null,1,null,11]
["校外",null,null,null,1,null,1,null,null,null,null,null,null,null,1,3]
["体育館",2,1,2,null,null,1,1,2,null,null,1,12,null,null,22]
["運動場",2,1,1,null,null,1,null,1,null,null,null,null,null,null,6]
["総計",5,3,3,2,5,7,3,7,1,1,4,12,2,1,56]
[]
[]
[]
[]
[]
["行ラベル","個数 / 児童生徒"]
["1年",16]
["1組",5]
["2組",3]
["3組",2]
["5組",1]
["4組",1]
["6組",4]
["2年",17]
["1組",4]
["2組",4]
["3組",6]
["5組",1]
["6組",2]
["3年",23]
["1組",3]
["2組",2]
["3組",3]
["5組",2]
["4組",1]
["6組",12]
["総計",56]

{"sheet":"グラフ","index":4,"n_rows":0,"n_cols":0,"rows_kept":0,"cut":false,"hidden":false,"merged":[]}

{"sheet":"選択肢設定","index":5,"n_rows":18,"n_cols":12,"rows_kept":18,"cut":false,"hidden":false,"merged":[]}
["学年","組","場所","時間帯","指導対象の行動","指導内容","共有・報告先","連絡方法","連絡相手",null,"月","授業日数"]
["1年","1組","教室","始業前","暴力(対生徒)","その場で注意・やり直し","担任","家庭訪問","父",null,"4月",20]
["2年","2組","ろうか","1時間目","暴力(対教師)","別室での個別指導","学年","電話連絡","母",null,"5月",23]
["3年","3組","トイレ","休み時間（１限後）","けんか","奉仕活動","生徒指導部長","その他※要入力","その他",null,"6月",22]
["4年","4組","運動場","2時間目","暴言","自己を振り返る活動","生徒指導主事",null,null,null,"7月",21]
["5年","5組","体育館","休み時間（２限後）","いじめ・嫌がらせ","適切な行動の再指導","教頭",null,null,null,"8月",23]
["6年","6組","校外","3時間目","授業妨害","その他※要入力","校長",null,null,null,"9月",21]
[null,"7組","その他※要入力","休み時間（３限後）","器物損壊",null,"その他※要入力",null,null,null,"10月",22]
[null,"8組",null,"4時間目","他者私物隠蔽破損等",null,null,null,null,null,"11月",22]
[null,null,null,"給食","不服従",null,null,null,null,null,"12月",21]
[null,null,null,"昼休み","徘徊／さぼり",null,null,null,null,null,"1月",23]
[null,null,null,"5時間目","不適切な場所への立入",null,null,null,null,null,"2月",21]
[null,null,null,"休み時間（５限後）","その他※要入力",null,null,null,null,null,"3月",21]
[null,null,null,"6時間目"]
[null,null,null,"掃除"]
[null,null,null,"放課後（校内）"]
[null,null,null,"放課後（校外）"]
[null,null,null,"その他※要入力"]

{"sheet":"1日あたり件数","index":6,"n_rows":13,"n_cols":4,"rows_kept":13,"cut":false,"hidden":true,"merged":[]}
["月","授業日数","件数","1日あたり件数"]
["4月",20,2,0.1]
["8月",23,7,0.3]
["5月",23,15,0.65]
["6月",22,8,0.36]
["9月",21,7,0.33]
["7月",21,7,0.33]
["11月",22,3,0.14000000000000001]
["10月",22,4,0.18]
["3月",21,3,0.14000000000000001]
["12月",21,4,0.19]
["1月",23,2,0.09]
["2月",21,1,0.05]